[Event "*** SCC Grand Prix: Titled Tuesday Blitz"]
[Site "Chess.com"]
[Date "2020.07.14"]
[Round "6"]
[White "ElCoachRene"]
[Black "teacher4chess"]
[Result "0-1"]
[WhiteElo "2183"]
[BlackElo "2029"]
[TimeControl "180+1"]
[EndTime "11:06:50 PDT"]
[Termination "teacher4chess won by checkmate"]

1. d4 {[%clk 0:03:00.9]} 1... Nf6 {[%clk 0:02:58.3]} 2. Bf4 {[%clk 0:03:01.2]}
2... d5 {[%clk 0:02:57.5]} 3. e3 {[%clk 0:03:01.6]} 3... c5 {[%clk 0:02:56.5]}
4. c3 {[%clk 0:03:00.9]} 4... Nc6 {[%clk 0:02:56.8]} 5. Nd2 {[%clk 0:02:59.6]}
5... Qb6 {[%clk 0:02:56.1]} 6. Qb3 {[%clk 0:02:59.3]} 6... c4 {[%clk 0:02:39.2]}
7. Qc2 {[%clk 0:02:47.6]} 7... g6 {[%clk 0:02:38.9]} 8. h3 {[%clk 0:02:42.6]}
8... Bf5 {[%clk 0:02:38.4]} 9. Qc1 {[%clk 0:02:43.2]} 9... Bg7 {[%clk
0:02:36.5]} 10. Ngf3 {[%clk 0:02:43.7]} 10... O-O {[%clk 0:02:33.3]} 11. Be2
{[%clk 0:02:44.2]} 11... a5 {[%clk 0:02:26.8]} 12. b3 {[%clk 0:02:38.5]} 12...
cxb3 {[%clk 0:02:19.4]} 13. axb3 {[%clk 0:02:39.4]} 13... Rfc8 {[%clk
0:02:16.7]} 14. Qa3 {[%clk 0:02:25.2]} 14... e6 {[%clk 0:02:07.2]} 15. O-O
{[%clk 0:02:24.7]} 15... Bf8 {[%clk 0:02:05]} 16. Qa2 {[%clk 0:02:21.1]} 16...
Ne4 {[%clk 0:01:57.3]} 17. Nxe4 {[%clk 0:02:16.7]} 17... Bxe4 {[%clk 0:01:56.3]}
18. Nd2 {[%clk 0:02:17.1]} 18... h6 {[%clk 0:01:30.9]} 19. f3 {[%clk 0:02:16.1]}
19... g5 {[%clk 0:01:31]} 20. fxe4 {[%clk 0:01:53.2]} 20... gxf4 {[%clk
0:01:25.9]} 21. Rxf4 {[%clk 0:01:53.4]} 21... Ne7 {[%clk 0:01:20.7]} 22. Rc1
{[%clk 0:01:48.3]} 22... dxe4 {[%clk 0:01:17.6]} 23. Nxe4 {[%clk 0:01:45.8]}
23... Nd5 {[%clk 0:01:00.6]} 24. Nf6+ {[%clk 0:01:35]} 24... Nxf6 {[%clk
0:00:58.5]} 25. Rxf6 {[%clk 0:01:35.9]} 25... Bg7 {[%clk 0:00:58.6]} 26. Rf2
{[%clk 0:01:29.7]} 26... e5 {[%clk 0:00:58]} 27. b4 {[%clk 0:01:20.4]} 27...
axb4 {[%clk 0:00:57.2]} 28. Qxf7+ {[%clk 0:01:18.9]} 28... Kh8 {[%clk 0:00:56]}
29. c4 {[%clk 0:01:10.3]} 29... exd4 {[%clk 0:00:54.4]} 30. c5 {[%clk
0:01:03.6]} 30... Rxc5 {[%clk 0:00:52.6]} 31. Rxc5 {[%clk 0:00:57.4]} 31... Qxc5
{[%clk 0:00:52.6]} 32. Rf5 {[%clk 0:00:49.8]} 32... Qc1+ {[%clk 0:00:40.1]} 33.
Kh2 {[%clk 0:00:45.7]} 33... Qxe3 {[%clk 0:00:40.5]} 34. Bf3 {[%clk 0:00:35.2]}
34... Be5+ {[%clk 0:00:38.6]} 35. g3 {[%clk 0:00:31.8]} 35... Qf2+ {[%clk
0:00:36.7]} 36. Bg2 {[%clk 0:00:31.4]} 36... Bxg3+ {[%clk 0:00:33.8]} 37. Kh1
{[%clk 0:00:26.5]} 37... Ra1+ {[%clk 0:00:34.2]} 38. Bf1 {[%clk 0:00:26.5]}
38... Rxf1# {[%clk 0:00:34.4]} 0-1

[Event "*** SCC Grand Prix: Titled Tuesday Blitz"]
[Site "Chess.com"]
[Date "2020.07.14"]
[Round "6"]
[White "TokChess"]
[Black "GM_LOADING"]
[Result "0-1"]
[WhiteElo "2437"]
[BlackElo "2581"]
[TimeControl "180+1"]
[EndTime "11:06:54 PDT"]
[Termination "GM_LOADING won by resignation"]

1. e4 {[%clk 0:02:53.3]} 1... e5 {[%clk 0:02:59.7]} 2. Nf3 {[%clk 0:02:53.3]}
2... Nc6 {[%clk 0:03:00.3]} 3. Bb5 {[%clk 0:02:53.3]} 3... g6 {[%clk 0:03:00.2]}
4. c3 {[%clk 0:02:52.7]} 4... a6 {[%clk 0:02:56.6]} 5. Ba4 {[%clk 0:02:52.4]}
5... Bg7 {[%clk 0:02:55.9]} 6. O-O {[%clk 0:02:51.9]} 6... Nge7 {[%clk 0:02:55]}
7. Re1 {[%clk 0:02:52.2]} 7... O-O {[%clk 0:02:54.7]} 8. d4 {[%clk 0:02:50.7]}
8... exd4 {[%clk 0:02:55.6]} 9. cxd4 {[%clk 0:02:50.9]} 9... d6 {[%clk
0:02:48.9]} 10. Bg5 {[%clk 0:02:49]} 10... b5 {[%clk 0:02:42]} 11. Bb3 {[%clk
0:02:46.6]} 11... h6 {[%clk 0:02:40]} 12. Bf4 {[%clk 0:02:40.8]} 12... Bg4
{[%clk 0:02:37.3]} 13. Be3 {[%clk 0:02:14.5]} 13... Bxf3 {[%clk 0:02:36.9]} 14.
gxf3 {[%clk 0:02:14.5]} 14... Na5 {[%clk 0:02:29.2]} 15. Bc2 {[%clk 0:02:13.8]}
15... Nc4 {[%clk 0:02:25.8]} 16. Nc3 {[%clk 0:02:07.6]} 16... c5 {[%clk
0:02:20.2]} 17. dxc5 {[%clk 0:01:54.2]} 17... Nxe3 {[%clk 0:01:33.7]} 18. Rxe3
{[%clk 0:01:52.7]} 18... dxc5 {[%clk 0:01:33.5]} 19. Rb1 {[%clk 0:01:35.8]}
19... c4 {[%clk 0:00:59.7]} 20. Nd5 {[%clk 0:01:31.4]} 20... Nc6 {[%clk
0:00:58]} 21. f4 {[%clk 0:01:19.3]} 21... Rc8 {[%clk 0:00:51.4]} 22. Rg3 {[%clk
0:01:11.9]} 22... Qh4 {[%clk 0:00:42]} 23. Qg4 {[%clk 0:00:54.2]} 23... Qxg4
{[%clk 0:00:38.2]} 24. Rxg4 {[%clk 0:00:54.8]} 24... Rfd8 {[%clk 0:00:32.7]} 25.
Rg3 {[%clk 0:00:39.4]} 25... Kf8 {[%clk 0:00:24.8]} 26. Kf1 {[%clk 0:00:39.7]}
26... Ne7 {[%clk 0:00:20.5]} 27. Nxe7 {[%clk 0:00:09.8]} 27... Kxe7 {[%clk
0:00:21.4]} 28. b3 {[%clk 0:00:08.8]} 28... Rd2 {[%clk 0:00:20.7]} 29. Bd1
{[%clk 0:00:05.8]} 29... c3 {[%clk 0:00:21]} 30. Rc1 {[%clk 0:00:06.3]} 30... c2
{[%clk 0:00:18.9]} 31. Be2 {[%clk 0:00:05.8]} 31... Bb2 {[%clk 0:00:18.8]} 0-1

[Event "*** SCC Grand Prix: Titled Tuesday Blitz"]
[Site "Chess.com"]
[Date "2020.07.14"]
[Round "6"]
[White "N00bM3ster"]
[Black "Alopekos"]
[Result "1-0"]
[WhiteElo "2813"]
[BlackElo "2343"]
[TimeControl "180+1"]
[EndTime "11:06:55 PDT"]
[Termination "N00bM3ster won on time"]

1. e4 {[%clk 0:03:00.9]} 1... e5 {[%clk 0:02:57.7]} 2. Nf3 {[%clk 0:02:59.8]}
2... Nc6 {[%clk 0:02:58.3]} 3. Bb5 {[%clk 0:02:54.6]} 3... a6 {[%clk 0:02:58.4]}
4. Bxc6 {[%clk 0:02:54]} 4... dxc6 {[%clk 0:02:58.3]} 5. O-O {[%clk 0:02:54.4]}
5... Bg4 {[%clk 0:02:58.1]} 6. h3 {[%clk 0:02:52.7]} 6... h5 {[%clk 0:02:57.7]}
7. d3 {[%clk 0:02:18.5]} 7... Qf6 {[%clk 0:02:57.3]} 8. Nbd2 {[%clk 0:02:15.7]}
8... Ne7 {[%clk 0:02:57.4]} 9. b3 {[%clk 0:02:09.4]} 9... Ng6 {[%clk 0:02:54.3]}
10. Bb2 {[%clk 0:02:07.5]} 10... Bd6 {[%clk 0:02:51.3]} 11. Re1 {[%clk
0:01:59.1]} 11... Nf4 {[%clk 0:02:33.4]} 12. Re3 {[%clk 0:01:52.3]} 12... Bxh3
{[%clk 0:01:47.2]} 13. gxh3 {[%clk 0:01:48.7]} 13... Qg6+ {[%clk 0:01:24.6]} 14.
Kf1 {[%clk 0:01:47.9]} 14... Qg2+ {[%clk 0:01:05.1]} 15. Ke1 {[%clk 0:01:47.8]}
15... Bc5 {[%clk 0:00:39.5]} 16. Nc4 {[%clk 0:01:36.9]} 16... b5 {[%clk
0:00:20.7]} 17. Ncxe5 {[%clk 0:01:32.1]} 17... Bxe3 {[%clk 0:00:09.6]} 18. fxe3
{[%clk 0:01:31.7]} 18... Qg3+ {[%clk 0:00:03.7]} 19. Kd2 {[%clk 0:01:30.1]}
19... Qf2+ {[%clk 0:00:04.1]} 20. Kc1 {[%clk 0:01:17]} 20... Ne2+ {[%clk
0:00:05]} 21. Kb1 {[%clk 0:01:13]} 21... f6 {[%clk 0:00:05.1]} 22. Nd4 {[%clk
0:00:50.7]} 22... Nxd4 {[%clk 0:00:05]} 23. Ng6 {[%clk 0:00:49.1]} 23... Rh6
{[%clk 0:00:03]} 24. Bxd4 {[%clk 0:00:39.9]} 24... Rxg6 {[%clk 0:00:02.6]} 25.
Qxh5 {[%clk 0:00:36.9]} 25... Kf7 {[%clk 0:00:02.1]} 26. Kb2 {[%clk 0:00:32.9]}
26... Qg2 {[%clk 0:00:02.4]} 27. e5 {[%clk 0:00:29]} 27... Qg5 {[%clk 0:00:02]}
28. Qf3 {[%clk 0:00:26.2]} 28... Kg8 {[%clk 0:00:02.4]} 29. Qxc6 {[%clk
0:00:22.3]} 29... Rf8 {[%clk 0:00:02.1]} 30. Rf1 {[%clk 0:00:14.1]} 1-0

[Event "*** SCC Grand Prix: Titled Tuesday Blitz"]
[Site "Chess.com"]
[Date "2020.07.14"]
[Round "6"]
[White "saraswathii"]
[Black "louis198"]
[Result "0-1"]
[WhiteElo "2333"]
[BlackElo "2554"]
[TimeControl "180+1"]
[EndTime "11:06:55 PDT"]
[Termination "louis198 won by resignation"]

1. d4 {[%clk 0:03:00.9]} 1... e6 {[%clk 0:03:00.9]} 2. Bf4 {[%clk 0:02:59.9]}
2... d5 {[%clk 0:02:57.4]} 3. e3 {[%clk 0:03:00]} 3... Bd6 {[%clk 0:02:56.9]} 4.
Bg3 {[%clk 0:02:58.8]} 4... Ne7 {[%clk 0:02:56.5]} 5. Nf3 {[%clk 0:02:58]} 5...
c5 {[%clk 0:02:54]} 6. c3 {[%clk 0:02:57]} 6... Nbc6 {[%clk 0:02:53.8]} 7. Bd3
{[%clk 0:02:54.1]} 7... h6 {[%clk 0:02:52.1]} 8. O-O {[%clk 0:02:51]} 8... O-O
{[%clk 0:02:50]} 9. Nbd2 {[%clk 0:02:47.7]} 9... a6 {[%clk 0:02:49.3]} 10. Qe2
{[%clk 0:02:43]} 10... f5 {[%clk 0:02:39.5]} 11. h3 {[%clk 0:02:35.9]} 11...
Bxg3 {[%clk 0:02:37.4]} 12. fxg3 {[%clk 0:02:35]} 12... Qd6 {[%clk 0:02:34.5]}
13. Qf2 {[%clk 0:02:29.7]} 13... Bd7 {[%clk 0:02:31.9]} 14. Rfe1 {[%clk
0:02:25.1]} 14... b5 {[%clk 0:02:28.2]} 15. a4 {[%clk 0:02:22]} 15... c4 {[%clk
0:02:24.1]} 16. Bc2 {[%clk 0:02:17.3]} 16... b4 {[%clk 0:02:24.5]} 17. Nf1
{[%clk 0:01:52.4]} 17... Rab8 {[%clk 0:02:12.4]} 18. Rab1 {[%clk 0:01:40.7]}
18... Na5 {[%clk 0:02:10.3]} 19. Ne5 {[%clk 0:01:33.9]} 19... b3 {[%clk
0:02:08.3]} 20. Bd1 {[%clk 0:01:29.7]} 20... Be8 {[%clk 0:01:47]} 21. Ra1 {[%clk
0:01:24.2]} 21... Nac6 {[%clk 0:01:44.8]} 22. Nxc6 {[%clk 0:01:22.1]} 22... Nxc6
{[%clk 0:01:44.4]} 23. Nd2 {[%clk 0:01:19.7]} 23... Rb7 {[%clk 0:01:28.9]} 24.
Nf3 {[%clk 0:01:17.8]} 24... Rbf7 {[%clk 0:01:27.9]} 25. Be2 {[%clk 0:01:06.2]}
25... Kh8 {[%clk 0:01:21.9]} 26. Nh4 {[%clk 0:01:04.3]} 26... Rf6 {[%clk
0:01:20.5]} 27. Nf3 {[%clk 0:00:59.8]} 27... g5 {[%clk 0:01:19.6]} 28. h4 {[%clk
0:00:53.4]} 28... g4 {[%clk 0:01:18.6]} 29. Nh2 {[%clk 0:00:51]} 29... h5 {[%clk
0:01:16.2]} 30. Qf4 {[%clk 0:00:45.2]} 30... Qd8 {[%clk 0:01:15.7]} 31. Qg5
{[%clk 0:00:32.7]} 31... f4 {[%clk 0:01:02.4]} 32. exf4 {[%clk 0:00:27.1]} 32...
Rg8 {[%clk 0:00:50]} 33. Bd1 {[%clk 0:00:17.4]} 33... Rxg5 {[%clk 0:00:49.1]}
34. hxg5 {[%clk 0:00:15.9]} 34... Rf8 {[%clk 0:00:49]} 35. Rxe6 {[%clk
0:00:13.8]} 35... Qd7 {[%clk 0:00:43.4]} 36. Rh6+ {[%clk 0:00:12.3]} 36... Kg7
{[%clk 0:00:42.5]} 37. Be2 {[%clk 0:00:10.4]} 37... Qe7 {[%clk 0:00:41.2]} 38.
Re1 {[%clk 0:00:10]} 38... Qe3+ {[%clk 0:00:41.2]} 39. Kh1 {[%clk 0:00:08.5]}
39... Qd2 {[%clk 0:00:38.5]} 0-1

[Event "*** SCC Grand Prix: Titled Tuesday Blitz"]
[Site "Chess.com"]
[Date "2020.07.14"]
[Round "6"]
[White "ChessicallyInclined"]
[Black "KobyKalavannan"]
[Result "0-1"]
[WhiteElo "2498"]
[BlackElo "2740"]
[TimeControl "180+1"]
[EndTime "11:06:59 PDT"]
[Termination "KobyKalavannan won by resignation"]

1. d4 {[%clk 0:03:00.9]} 1... Nf6 {[%clk 0:03:00]} 2. c4 {[%clk 0:03:00.8]} 2...
g6 {[%clk 0:03:00.2]} 3. Nc3 {[%clk 0:03:01.2]} 3... Bg7 {[%clk 0:03:01]} 4. e4
{[%clk 0:03:01.6]} 4... d6 {[%clk 0:03:01.8]} 5. f3 {[%clk 0:03:02.1]} 5... O-O
{[%clk 0:03:02.5]} 6. Be3 {[%clk 0:03:02.7]} 6... Nc6 {[%clk 0:03:02.8]} 7. Nge2
{[%clk 0:02:57.7]} 7... a6 {[%clk 0:03:03.1]} 8. Qd2 {[%clk 0:02:57.6]} 8... Bd7
{[%clk 0:03:03.3]} 9. g4 {[%clk 0:02:54.8]} 9... b5 {[%clk 0:02:33.8]} 10. h4
{[%clk 0:02:53.5]} 10... h5 {[%clk 0:02:32.2]} 11. g5 {[%clk 0:02:43.5]} 11...
Ne8 {[%clk 0:02:31.9]} 12. f4 {[%clk 0:02:00.3]} 12... Na5 {[%clk 0:02:27.8]}
13. Ng3 {[%clk 0:01:58.5]} 13... e6 {[%clk 0:02:10.7]} 14. c5 {[%clk 0:01:46.6]}
14... dxc5 {[%clk 0:02:09.7]} 15. dxc5 {[%clk 0:01:47.5]} 15... Bc6 {[%clk
0:02:09.2]} 16. Qc2 {[%clk 0:01:38]} 16... f5 {[%clk 0:02:02.5]} 17. gxf6 {[%clk
0:01:28.7]} 17... Nxf6 {[%clk 0:02:02.5]} 18. Be2 {[%clk 0:01:19.7]} 18... Nc4
{[%clk 0:01:56.8]} 19. Bxc4 {[%clk 0:01:16.2]} 19... bxc4 {[%clk 0:01:57.7]} 20.
Rd1 {[%clk 0:00:55.7]} 20... Qe7 {[%clk 0:01:56.6]} 21. Bd4 {[%clk 0:00:52.5]}
21... Ng4 {[%clk 0:01:48.9]} 22. Bxg7 {[%clk 0:00:47.4]} 22... Kxg7 {[%clk
0:01:49.5]} 23. Nce2 {[%clk 0:00:39.6]} 23... Qxc5 {[%clk 0:01:39.7]} 24. Nd4
{[%clk 0:00:32.6]} 24... Rae8 {[%clk 0:01:31.9]} 25. Qc3 {[%clk 0:00:20.1]}
25... Kh7 {[%clk 0:01:26.9]} 26. O-O {[%clk 0:00:20.1]} 26... Rf6 {[%clk
0:00:54.5]} 27. Kg2 {[%clk 0:00:19.2]} 27... Ref8 {[%clk 0:00:52.7]} 28. Nxc6
{[%clk 0:00:13.9]} 28... Qxc6 {[%clk 0:00:52.8]} 29. Qd2 {[%clk 0:00:11.1]}
29... Qb6 {[%clk 0:00:50.1]} 30. Rde1 {[%clk 0:00:07.2]} 30... Qd6 {[%clk
0:00:35.3]} 31. Qc3 {[%clk 0:00:05.3]} 31... Qc5 {[%clk 0:00:33.2]} 32. f5
{[%clk 0:00:03.8]} 32... e5 {[%clk 0:00:26.6]} 33. fxg6+ {[%clk 0:00:03.8]}
33... Kxg6 {[%clk 0:00:27.5]} 34. Nf5 {[%clk 0:00:04.2]} 34... Rg8 {[%clk
0:00:22.7]} 35. Rg1 {[%clk 0:00:04.5]} 35... Qf2+ {[%clk 0:00:21.2]} 0-1

[Event "*** SCC Grand Prix: Titled Tuesday Blitz"]
[Site "Chess.com"]
[Date "2020.07.14"]
[Round "6"]
[White "mattcolins2025"]
[Black "VladimirBugayev"]
[Result "1-0"]
[WhiteElo "2394"]
[BlackElo "2109"]
[TimeControl "180+1"]
[EndTime "11:07:00 PDT"]
[Termination "mattcolins2025 won by checkmate"]

1. d4 {[%clk 0:03:00.9]} 1... d5 {[%clk 0:02:59.4]} 2. c4 {[%clk 0:03:01.3]}
2... c6 {[%clk 0:02:59.3]} 3. Nc3 {[%clk 0:03:01.8]} 3... Nf6 {[%clk 0:02:59.6]}
4. Nf3 {[%clk 0:03:02.2]} 4... e6 {[%clk 0:02:59.9]} 5. Bg5 {[%clk 0:03:02.1]}
5... Nbd7 {[%clk 0:03:00]} 6. e3 {[%clk 0:03:02.4]} 6... Qa5 {[%clk 0:02:59.9]}
7. Nd2 {[%clk 0:02:59.7]} 7... Bb4 {[%clk 0:02:58.4]} 8. Qc2 {[%clk 0:02:57.5]}
8... Ne4 {[%clk 0:02:57.8]} 9. Ndxe4 {[%clk 0:02:52.2]} 9... dxe4 {[%clk
0:02:57.6]} 10. Bf4 {[%clk 0:02:52.1]} 10... e5 {[%clk 0:02:42.9]} 11. Bg3
{[%clk 0:02:45.4]} 11... O-O {[%clk 0:02:27.2]} 12. Be2 {[%clk 0:02:40.1]} 12...
f5 {[%clk 0:02:11.1]} 13. dxe5 {[%clk 0:02:36]} 13... Bxc3+ {[%clk 0:02:02.6]}
14. bxc3 {[%clk 0:02:34.8]} 14... Nxe5 {[%clk 0:01:39.6]} 15. Qb3 {[%clk
0:02:31.1]} 15... Be6 {[%clk 0:01:20.3]} 16. O-O {[%clk 0:02:23]} 16... b6
{[%clk 0:01:20.2]} 17. Rac1 {[%clk 0:02:15.6]} 17... Rad8 {[%clk 0:01:02]} 18.
Rfd1 {[%clk 0:02:07.5]} 18... Qc5 {[%clk 0:01:01.5]} 19. Rd4 {[%clk 0:02:03.2]}
19... Nf7 {[%clk 0:00:37.3]} 20. Rcd1 {[%clk 0:01:52.7]} 20... b5 {[%clk
0:00:36.8]} 21. Qb4 {[%clk 0:01:44]} 21... Qxb4 {[%clk 0:00:35.6]} 22. cxb4
{[%clk 0:01:43.2]} 22... bxc4 {[%clk 0:00:35.8]} 23. a3 {[%clk 0:01:32.4]} 23...
c3 {[%clk 0:00:23.7]} 24. Rc1 {[%clk 0:01:18.9]} 24... Rxd4 {[%clk 0:00:20.5]}
25. exd4 {[%clk 0:01:18.2]} 25... Bd5 {[%clk 0:00:19.5]} 26. Rxc3 {[%clk
0:01:17.5]} 26... Nd8 {[%clk 0:00:20]} 27. Bd6 {[%clk 0:01:15.6]} 27... Rf6
{[%clk 0:00:18.9]} 28. Bc5 {[%clk 0:01:15.6]} 28... f4 {[%clk 0:00:18]} 29. Bxa7
{[%clk 0:01:11.9]} 29... Ne6 {[%clk 0:00:18.1]} 30. Bg4 {[%clk 0:01:08.5]} 30...
Ng5 {[%clk 0:00:17.1]} 31. Bb8 {[%clk 0:00:58.7]} 31... g6 {[%clk 0:00:16.1]}
32. Be5 {[%clk 0:00:54.9]} 32... Rf7 {[%clk 0:00:15.8]} 33. h4 {[%clk
0:00:53.2]} 33... h5 {[%clk 0:00:15.5]} 34. Bc8 {[%clk 0:00:49.6]} 34... Ne6
{[%clk 0:00:14.7]} 35. b5 {[%clk 0:00:46.4]} 35... e3 {[%clk 0:00:12.6]} 36.
fxe3 {[%clk 0:00:45.5]} 36... f3 {[%clk 0:00:12.5]} 37. gxf3 {[%clk 0:00:42.1]}
37... Rxf3 {[%clk 0:00:12.4]} 38. bxc6 {[%clk 0:00:36.6]} 38... Ng7 {[%clk
0:00:10.6]} 39. c7 {[%clk 0:00:35.5]} 39... Kh7 {[%clk 0:00:03.4]} 40. Bg4
{[%clk 0:00:34]} 40... hxg4 {[%clk 0:00:03]} 41. c8=Q {[%clk 0:00:34]} 41... Nf5
{[%clk 0:00:03.2]} 42. Rc7+ {[%clk 0:00:33.7]} 42... Kh6 {[%clk 0:00:01.8]} 43.
Qh8# {[%clk 0:00:33.8]} 1-0

[Event "*** SCC Grand Prix: Titled Tuesday Blitz"]
[Site "Chess.com"]
[Date "2020.07.14"]
[Round "6"]
[White "KratosKrieg"]
[Black "MariaFominykh"]
[Result "0-1"]
[WhiteElo "1951"]
[BlackElo "2272"]
[TimeControl "180+1"]
[EndTime "11:07:00 PDT"]
[Termination "MariaFominykh won on time"]

1. e4 {[%clk 0:02:46.2]} 1... d6 {[%clk 0:02:53.1]} 2. d4 {[%clk 0:02:44.4]}
2... Nf6 {[%clk 0:02:52.8]} 3. Nc3 {[%clk 0:02:43.7]} 3... Nbd7 {[%clk
0:02:50.3]} 4. Nf3 {[%clk 0:02:43.1]} 4... e5 {[%clk 0:02:49.9]} 5. Bc4 {[%clk
0:02:37.6]} 5... Be7 {[%clk 0:02:48.8]} 6. O-O {[%clk 0:02:37]} 6... O-O {[%clk
0:02:48.5]} 7. a4 {[%clk 0:02:35.9]} 7... c6 {[%clk 0:02:46.9]} 8. Re1 {[%clk
0:02:27.5]} 8... b6 {[%clk 0:02:42.5]} 9. Qd3 {[%clk 0:02:16.4]} 9... Bb7 {[%clk
0:02:33.9]} 10. Bg5 {[%clk 0:02:07.9]} 10... a6 {[%clk 0:02:09.6]} 11. Ba2
{[%clk 0:01:57.8]} 11... Nh5 {[%clk 0:01:38.4]} 12. Bxe7 {[%clk 0:01:36.5]}
12... Qxe7 {[%clk 0:01:39.3]} 13. dxe5 {[%clk 0:01:33.2]} 13... Nxe5 {[%clk
0:01:14.2]} 14. Nxe5 {[%clk 0:01:32.1]} 14... dxe5 {[%clk 0:01:14.7]} 15. Rad1
{[%clk 0:01:28.6]} 15... Rad8 {[%clk 0:00:52]} 16. Qf3 {[%clk 0:01:07.4]} 16...
Nf4 {[%clk 0:00:48.2]} 17. Rxd8 {[%clk 0:00:41.6]} 17... Rxd8 {[%clk 0:00:45.8]}
18. Rd1 {[%clk 0:00:37.2]} 18... Rxd1+ {[%clk 0:00:33]} 19. Qxd1 {[%clk
0:00:34.8]} 19... b5 {[%clk 0:00:29.2]} 20. g3 {[%clk 0:00:20.5]} 20... Ng6
{[%clk 0:00:19.7]} 21. axb5 {[%clk 0:00:15.8]} 21... axb5 {[%clk 0:00:19]} 22.
Ne2 {[%clk 0:00:11.5]} 22... Bc8 {[%clk 0:00:17.5]} 23. Qd3 {[%clk 0:00:10.7]}
23... Be6 {[%clk 0:00:17.3]} 24. Bxe6 {[%clk 0:00:07.5]} 24... Qxe6 {[%clk
0:00:17.4]} 25. Nc3 {[%clk 0:00:04.3]} 25... h6 {[%clk 0:00:16.2]} 26. Nd1
{[%clk 0:00:04.5]} 26... Kh7 {[%clk 0:00:15.7]} 27. Ne3 {[%clk 0:00:04.1]} 27...
Ne7 {[%clk 0:00:15.4]} 28. Kg2 {[%clk 0:00:02.5]} 28... g6 {[%clk 0:00:15.3]}
29. Qd8 {[%clk 0:00:02.2]} 29... Ng8 {[%clk 0:00:14.8]} 30. h3 {[%clk
0:00:01.7]} 30... Nf6 {[%clk 0:00:15]} 0-1

[Event "*** SCC Grand Prix: Titled Tuesday Blitz"]
[Site "Chess.com"]
[Date "2020.07.14"]
[Round "6"]
[White "GeorgMeier"]
[Black "Sychev_Klementy"]
[Result "1-0"]
[WhiteElo "2960"]
[BlackElo "2734"]
[TimeControl "180+1"]
[EndTime "11:07:01 PDT"]
[Termination "GeorgMeier won by resignation"]

1. Nf3 {[%clk 0:02:53.3]} 1... Nf6 {[%clk 0:02:55.2]} 2. g3 {[%clk 0:02:53.3]}
2... d5 {[%clk 0:02:52.9]} 3. Bg2 {[%clk 0:02:53.9]} 3... g6 {[%clk 0:02:36.6]}
4. c4 {[%clk 0:02:50.8]} 4... c6 {[%clk 0:02:31.4]} 5. b3 {[%clk 0:02:50.7]}
5... Bg7 {[%clk 0:02:22.7]} 6. Bb2 {[%clk 0:02:51.1]} 6... O-O {[%clk
0:02:21.5]} 7. O-O {[%clk 0:02:50.5]} 7... Bg4 {[%clk 0:01:59.1]} 8. d4 {[%clk
0:02:44.4]} 8... Ne4 {[%clk 0:01:43.9]} 9. Nc3 {[%clk 0:02:42.7]} 9... Nxc3
{[%clk 0:01:37.3]} 10. Bxc3 {[%clk 0:02:43.6]} 10... Nd7 {[%clk 0:01:36.7]} 11.
Rc1 {[%clk 0:02:38.7]} 11... Re8 {[%clk 0:01:21.7]} 12. h3 {[%clk 0:02:26]}
12... Bf5 {[%clk 0:01:15.6]} 13. cxd5 {[%clk 0:02:07.8]} 13... cxd5 {[%clk
0:01:15.2]} 14. Ne5 {[%clk 0:01:45]} 14... Nf6 {[%clk 0:01:10.2]} 15. a4 {[%clk
0:01:37.7]} 15... Rc8 {[%clk 0:01:08.1]} 16. a5 {[%clk 0:01:29.5]} 16... Ne4
{[%clk 0:01:04.7]} 17. Bb4 {[%clk 0:01:26.8]} 17... f6 {[%clk 0:00:51.9]} 18.
Nd3 {[%clk 0:01:23.2]} 18... Qd7 {[%clk 0:00:51.2]} 19. g4 {[%clk 0:01:12.1]}
19... Be6 {[%clk 0:00:51.3]} 20. Nc5 {[%clk 0:01:09]} 20... Nxc5 {[%clk
0:00:48.4]} 21. Bxc5 {[%clk 0:01:08.8]} 21... a6 {[%clk 0:00:39.7]} 22. b4
{[%clk 0:01:02.4]} 22... f5 {[%clk 0:00:37.1]} 23. gxf5 {[%clk 0:00:48.3]} 23...
Bxf5 {[%clk 0:00:36.7]} 24. Qb3 {[%clk 0:00:48.3]} 24... e6 {[%clk 0:00:30.2]}
25. Qg3 {[%clk 0:00:44.8]} 25... Rc6 {[%clk 0:00:21]} 26. Rfd1 {[%clk 0:00:32]}
26... Qf7 {[%clk 0:00:19.5]} 27. e3 {[%clk 0:00:29.2]} 27... h5 {[%clk 0:00:19]}
28. h4 {[%clk 0:00:23.8]} 28... Bf6 {[%clk 0:00:18.6]} 29. f3 {[%clk 0:00:22.3]}
29... Kh7 {[%clk 0:00:18.1]} 30. e4 {[%clk 0:00:19]} 30... dxe4 {[%clk
0:00:16.7]} 31. fxe4 {[%clk 0:00:19.9]} 31... Bg4 {[%clk 0:00:16.8]} 32. Rf1
{[%clk 0:00:20.2]} 32... e5 {[%clk 0:00:12.8]} 33. dxe5 {[%clk 0:00:19.2]} 33...
Rxe5 {[%clk 0:00:07.4]} 34. Qxe5 {[%clk 0:00:19]} 34... Qg7 {[%clk 0:00:07.1]}
35. Qg3 {[%clk 0:00:17.1]} 1-0